[Event "Late-Titled-Tuesday-Blitz-December-26-2023"]
[Site "Chess.com"]
[Date "2023.12.26"]
[Round "4"]
[White "rasmussvane"]
[Black "Maitreia"]
[Result "1-0"]
[WhiteElo "2910"]
[BlackElo "2724"]
[TimeControl "180+1"]
[EndTime "14:39:35 PST"]
[Termination "rasmussvane won by resignation"]

1. Nf3 {[%clk 0:02:55.6]} 1... Nf6 {[%clk 0:02:59.1]} 2. g3 {[%clk 0:02:55.5]}
2... c5 {[%clk 0:02:59.3]} 3. Bg2 {[%clk 0:02:54.9]} 3... g6 {[%clk 0:02:59.9]}
4. O-O {[%clk 0:02:54.9]} 4... Bg7 {[%clk 0:02:59.8]} 5. c4 {[%clk 0:02:54]}
5... Nc6 {[%clk 0:02:59.5]} 6. d4 {[%clk 0:02:53.4]} 6... cxd4 {[%clk
0:03:00.4]} 7. Nxd4 {[%clk 0:02:54.3]} 7... Nxd4 {[%clk 0:03:01.3]} 8. Qxd4
{[%clk 0:02:54.7]} 8... O-O {[%clk 0:03:02.1]} 9. Nc3 {[%clk 0:02:55.2]} 9... d6
{[%clk 0:03:02.7]} 10. Qd3 {[%clk 0:02:54.2]} 10... Be6 {[%clk 0:03:02.2]} 11.
Be3 {[%clk 0:02:53.6]} 11... Rc8 {[%clk 0:02:57.9]} 12. b3 {[%clk 0:02:53.6]}
12... Qd7 {[%clk 0:02:52.5]} 13. Bxa7 {[%clk 0:02:47.8]} 13... Bf5 {[%clk
0:02:49.2]} 14. Qd2 {[%clk 0:02:43.3]} 14... b5 {[%clk 0:02:41.3]} 15. Nxb5
{[%clk 0:02:42]} 15... Ne4 {[%clk 0:02:37.8]} 16. Bxe4 {[%clk 0:02:41.5]} 16...
Bxe4 {[%clk 0:02:36.6]} 17. Bd4 {[%clk 0:02:41]} 17... f6 {[%clk 0:02:09.4]} 18.
f3 {[%clk 0:02:38.5]} 18... Bc6 {[%clk 0:02:07.8]} 19. Nc3 {[%clk 0:02:37.4]}
19... h5 {[%clk 0:02:01.9]} 20. e4 {[%clk 0:02:37.2]} 20... h4 {[%clk
0:01:59.3]} 21. g4 {[%clk 0:02:36.1]} 21... Kh7 {[%clk 0:01:54.2]} 22. Qf2
{[%clk 0:02:31.9]} 22... Rh8 {[%clk 0:01:51.3]} 23. h3 {[%clk 0:02:28.3]} 23...
Kg8 {[%clk 0:01:49.1]} 24. f4 {[%clk 0:02:28.6]} 24... e5 {[%clk 0:01:42.9]} 25.
Be3 {[%clk 0:02:24.9]} 25... exf4 {[%clk 0:01:37.1]} 26. Bxf4 {[%clk 0:02:12.5]}
26... f5 {[%clk 0:01:37.4]} 27. Nd5 {[%clk 0:02:13]} 27... Bxd5 {[%clk 0:01:36]}
28. exd5 {[%clk 0:01:55.7]} 28... Bxa1 {[%clk 0:01:35]} 29. Rxa1 {[%clk
0:01:56.6]} 29... fxg4 {[%clk 0:01:33.6]} 30. Re1 {[%clk 0:01:57.3]} 30... Rf8
{[%clk 0:01:29.7]} 31. Re6 {[%clk 0:01:32.8]} 31... Qf7 {[%clk 0:00:58.2]} 32.
Qc2 {[%clk 0:01:32.7]} 32... Kh7 {[%clk 0:00:52.7]} 33. hxg4 {[%clk 0:01:15.2]}
33... Rhg8 {[%clk 0:00:52.6]} 34. Re4 {[%clk 0:01:15.2]} 34... Qxf4 {[%clk
0:00:48.6]} 35. Rxf4 {[%clk 0:01:14.8]} 35... Rxf4 {[%clk 0:00:49.5]} 36. Qe2
{[%clk 0:01:13]} 36... Rgf8 {[%clk 0:00:40.3]} 37. Kg2 {[%clk 0:01:06.3]} 37...
Kh6 {[%clk 0:00:28.4]} 38. c5 {[%clk 0:00:43.9]} 38... Kg5 {[%clk 0:00:28.4]}
39. cxd6 {[%clk 0:00:41.4]} 39... Rxg4+ {[%clk 0:00:27.3]} 40. Kh2 {[%clk
0:00:34.4]} 40... Rgf4 {[%clk 0:00:25.2]} 41. Qe7+ {[%clk 0:00:31.8]} 41... R8f6
{[%clk 0:00:24.7]} 42. Qe5+ {[%clk 0:00:27.7]} 42... Kg4 {[%clk 0:00:24.1]} 43.
Qe2+ {[%clk 0:00:25.2]} 43... Kg5 {[%clk 0:00:24.2]} 44. Qg2+ {[%clk 0:00:23.8]}
44... Rg4 {[%clk 0:00:21.2]} 45. Qd2+ {[%clk 0:00:22.1]} 45... Kh5 {[%clk
0:00:16.6]} 46. Qe2 {[%clk 0:00:22.3]} 46... Kg5 {[%clk 0:00:12.8]} 47. d7
{[%clk 0:00:21]} 47... Rd6 {[%clk 0:00:05.8]} 48. Qe5+ {[%clk 0:00:20.6]} 1-0

[Event "Late-Titled-Tuesday-Blitz-December-26-2023"]
[Site "Chess.com"]
[Date "2023.12.26"]
[Round "4"]
[White "mariofs"]
[Black "Balla_Tamas"]
[Result "1-0"]
[WhiteElo "2202"]
[BlackElo "2428"]
[TimeControl "180+1"]
[EndTime "14:39:35 PST"]
[Termination "mariofs won by checkmate"]

1. d4 {[%clk 0:03:00.9]} 1... d5 {[%clk 0:02:55.8]} 2. Bf4 {[%clk 0:02:58.5]}
2... Nf6 {[%clk 0:02:50.1]} 3. Nc3 {[%clk 0:02:57.8]} 3... a6 {[%clk 0:02:48.6]}
4. e3 {[%clk 0:02:53.5]} 4... e6 {[%clk 0:02:48]} 5. Nf3 {[%clk 0:02:53]} 5...
c5 {[%clk 0:02:44.6]} 6. Ne5 {[%clk 0:02:48.9]} 6... Nc6 {[%clk 0:02:34.4]} 7.
a3 {[%clk 0:02:42.6]} 7... Bd6 {[%clk 0:02:29.2]} 8. Qf3 {[%clk 0:02:19.9]} 8...
Qc7 {[%clk 0:02:22.1]} 9. Nxc6 {[%clk 0:02:10.2]} 9... Qxc6 {[%clk 0:02:21.1]}
10. Bxd6 {[%clk 0:02:05.2]} 10... Qxd6 {[%clk 0:02:21.1]} 11. Be2 {[%clk
0:01:52.8]} 11... O-O {[%clk 0:02:19.8]} 12. O-O {[%clk 0:01:52.2]} 12... c4
{[%clk 0:02:12.3]} 13. Rfd1 {[%clk 0:01:47.9]} 13... b5 {[%clk 0:02:09.8]} 14.
e4 {[%clk 0:01:47.2]} 14... dxe4 {[%clk 0:02:03.5]} 15. Nxe4 {[%clk 0:01:47.2]}
15... Nxe4 {[%clk 0:02:03.7]} 16. Qxe4 {[%clk 0:01:46.3]} 16... Rb8 {[%clk
0:02:03.1]} 17. c3 {[%clk 0:01:43.9]} 17... Bb7 {[%clk 0:02:01.8]} 18. Qg4
{[%clk 0:01:42.7]} 18... Bd5 {[%clk 0:01:58]} 19. Re1 {[%clk 0:01:40.4]} 19...
a5 {[%clk 0:01:52.7]} 20. h4 {[%clk 0:01:22.5]} 20... b4 {[%clk 0:01:49.5]} 21.
axb4 {[%clk 0:01:22.8]} 21... axb4 {[%clk 0:01:48.6]} 22. Bf3 {[%clk 0:01:18.5]}
22... bxc3 {[%clk 0:01:26.2]} 23. bxc3 {[%clk 0:01:17.4]} 23... Rb3 {[%clk
0:01:26]} 24. Bxd5 {[%clk 0:01:11.1]} 24... exd5 {[%clk 0:00:48.6]} 25. Re3
{[%clk 0:01:10.7]} 25... Rfb8 {[%clk 0:00:39.5]} 26. g3 {[%clk 0:01:02.8]} 26...
Qf6 {[%clk 0:00:25.3]} 27. Kg2 {[%clk 0:00:54.9]} 27... h6 {[%clk 0:00:25.3]}
28. Ra5 {[%clk 0:00:46.6]} 28... Rb2 {[%clk 0:00:21.1]} 29. Qf3 {[%clk
0:00:45.7]} 29... Qg6 {[%clk 0:00:16.9]} 30. Rxd5 {[%clk 0:00:39.7]} 30... Qc2
{[%clk 0:00:16.8]} 31. Rd7 {[%clk 0:00:36]} 31... Rf8 {[%clk 0:00:15.7]} 32.
Ree7 {[%clk 0:00:32.6]} 32... Qg6 {[%clk 0:00:15.4]} 33. Rc7 {[%clk 0:00:31.7]}
33... Rc2 {[%clk 0:00:09]} 34. Rxc4 {[%clk 0:00:30.4]} 34... Rc1 {[%clk
0:00:09.2]} 35. Rcc7 {[%clk 0:00:29]} 35... Ra1 {[%clk 0:00:06.7]} 36. c4 {[%clk
0:00:24.2]} 36... Qb1 {[%clk 0:00:06.5]} 37. Kh3 {[%clk 0:00:18.5]} 37... Qf1+
{[%clk 0:00:05.6]} 38. Qg2 {[%clk 0:00:16.7]} 38... Qd3 {[%clk 0:00:04.2]} 39.
d5 {[%clk 0:00:15.2]} 39... Qf5+ {[%clk 0:00:04.4]} 40. Kh2 {[%clk 0:00:15.3]}
40... Qf6 {[%clk 0:00:04.5]} 41. Re2 {[%clk 0:00:14.3]} 41... Qc3 {[%clk
0:00:03.5]} 42. d6 {[%clk 0:00:13.1]} 42... Rd8 {[%clk 0:00:03.7]} 43. Qd5
{[%clk 0:00:11.6]} 43... Qc1 {[%clk 0:00:03.1]} 44. Qxf7+ {[%clk 0:00:11.4]}
44... Kh8 {[%clk 0:00:01.5]} 45. Qxg7# {[%clk 0:00:12.3]} 1-0

[Event "Late-Titled-Tuesday-Blitz-December-26-2023"]
[Site "Chess.com"]
[Date "2023.12.26"]
[Round "4"]
[White "hsd2016"]
[Black "DanylaBagrov"]
[Result "0-1"]
[WhiteElo "2268"]
[BlackElo "2578"]
[TimeControl "180+1"]
[EndTime "14:39:36 PST"]
[Termination "DanylaBagrov won by resignation"]

1. e4 {[%clk 0:03:00.9]} 1... d6 {[%clk 0:02:52.3]} 2. d4 {[%clk 0:03:01]} 2...
Nf6 {[%clk 0:02:53.1]} 3. Nc3 {[%clk 0:03:01.3]} 3... e5 {[%clk 0:02:53.8]} 4.
dxe5 {[%clk 0:03:01.5]} 4... dxe5 {[%clk 0:02:54.7]} 5. Qxd8+ {[%clk 0:03:01.3]}
5... Kxd8 {[%clk 0:02:55.6]} 6. Bg5 {[%clk 0:02:59.3]} 6... Bd6 {[%clk
0:02:54.5]} 7. O-O-O {[%clk 0:02:58.9]} 7... Be6 {[%clk 0:02:49.7]} 8. f3 {[%clk
0:02:56.1]} 8... Nd7 {[%clk 0:02:39.3]} 9. Nge2 {[%clk 0:02:45.8]} 9... h6
{[%clk 0:02:31.8]} 10. Be3 {[%clk 0:02:44.7]} 10... a6 {[%clk 0:02:25.2]} 11.
Ng3 {[%clk 0:02:44.7]} 11... g6 {[%clk 0:02:20.2]} 12. Be2 {[%clk 0:02:38.3]}
12... Ke7 {[%clk 0:02:18.7]} 13. Rd2 {[%clk 0:02:37.3]} 13... Bc5 {[%clk
0:02:16.8]} 14. Bxc5+ {[%clk 0:02:36.9]} 14... Nxc5 {[%clk 0:02:17.7]} 15. Rhd1
{[%clk 0:02:37.3]} 15... h5 {[%clk 0:02:11.8]} 16. Nf1 {[%clk 0:02:35.6]} 16...
c6 {[%clk 0:02:08.9]} 17. Ne3 {[%clk 0:02:33.1]} 17... b5 {[%clk 0:02:07.8]} 18.
a3 {[%clk 0:01:50.5]} 18... a5 {[%clk 0:02:02]} 19. Nb1 {[%clk 0:00:59.6]} 19...
h4 {[%clk 0:01:55.2]} 20. b3 {[%clk 0:00:51.8]} 20... Nh5 {[%clk 0:01:42.6]} 21.
Ng4 {[%clk 0:00:39.2]} 21... Bxg4 {[%clk 0:01:34]} 22. fxg4 {[%clk 0:00:40.1]}
22... Nf4 {[%clk 0:01:31.8]} 23. Bf3 {[%clk 0:00:40.3]} 23... b4 {[%clk
0:01:27.5]} 24. a4 {[%clk 0:00:38.2]} 24... h3 {[%clk 0:01:13.2]} 25. g3 {[%clk
0:00:37.3]} 25... Nfe6 {[%clk 0:01:13.3]} 26. Re2 {[%clk 0:00:35.4]} 26... Nd4
{[%clk 0:01:13.1]} 27. Re3 {[%clk 0:00:31.7]} 27... Rhd8 {[%clk 0:00:56.9]} 28.
Nd2 {[%clk 0:00:31.8]} 28... Rd7 {[%clk 0:00:53.8]} 29. Nc4 {[%clk 0:00:31.6]}
29... Ke6 {[%clk 0:00:43.6]} 30. Nb6 {[%clk 0:00:28.4]} 30... Rad8 {[%clk
0:00:41.5]} 31. Nxd7 {[%clk 0:00:28.4]} 31... Rxd7 {[%clk 0:00:42.4]} 32. Be2
{[%clk 0:00:22.3]} 32... g5 {[%clk 0:00:39.9]} 33. Bc4+ {[%clk 0:00:17.9]} 33...
Kf6 {[%clk 0:00:39.1]} 34. Rf1+ {[%clk 0:00:18]} 34... Kg6 {[%clk 0:00:39.7]}
35. Rfe1 {[%clk 0:00:13.1]} 35... Rd6 {[%clk 0:00:35.9]} 36. Bf1 {[%clk
0:00:11.7]} 36... Rf6 {[%clk 0:00:32.6]} 37. Bxh3 {[%clk 0:00:12]} 37... Rf2
{[%clk 0:00:33.3]} 38. Bf1 {[%clk 0:00:04.5]} 38... Nxc2 {[%clk 0:00:29.3]} 39.
Bc4 {[%clk 0:00:03.6]} 39... Nxe1 {[%clk 0:00:21.3]} 40. Rxe1 {[%clk 0:00:03.6]}
40... Rxh2 {[%clk 0:00:20.3]} 41. Rf1 {[%clk 0:00:04.1]} 41... f6 {[%clk
0:00:20.1]} 42. Be6 {[%clk 0:00:03.1]} 42... Ra2 {[%clk 0:00:17.7]} 43. Bf5+
{[%clk 0:00:03.1]} 43... Kf7 {[%clk 0:00:17.7]} 44. Rd1 {[%clk 0:00:02.8]} 44...
Ke7 {[%clk 0:00:17.9]} 45. Rd2 {[%clk 0:00:01.5]} 45... Nxb3+ {[%clk 0:00:18.2]}
0-1

[Event "Late-Titled-Tuesday-Blitz-December-26-2023"]
[Site "Chess.com"]
[Date "2023.12.26"]
[Round "4"]
[White "KNVB"]
[Black "TEREZANA"]
[Result "1-0"]
[WhiteElo "2717"]
[BlackElo "2508"]
[TimeControl "180+1"]
[EndTime "14:39:37 PST"]
[Termination "KNVB won by checkmate"]

1. d4 {[%clk 0:03:00.9]} 1... d5 {[%clk 0:01:48.1]} 2. Bf4 {[%clk 0:02:59.7]}
2... Nf6 {[%clk 0:01:45.8]} 3. e3 {[%clk 0:02:59.7]} 3... e6 {[%clk 0:01:44.4]}
4. Nf3 {[%clk 0:02:59.4]} 4... Bd6 {[%clk 0:01:44.6]} 5. Nbd2 {[%clk 0:03:00.1]}
5... O-O {[%clk 0:01:42.7]} 6. Bd3 {[%clk 0:03:00]} 6... b6 {[%clk 0:01:38.5]}
7. O-O {[%clk 0:03:00.1]} 7... Bb7 {[%clk 0:01:37.2]} 8. a4 {[%clk 0:02:52.4]}
8... c5 {[%clk 0:01:36.1]} 9. c3 {[%clk 0:02:51.5]} 9... Bxf4 {[%clk 0:01:32.9]}
10. exf4 {[%clk 0:02:52.4]} 10... Qd6 {[%clk 0:01:31.4]} 11. g3 {[%clk
0:02:51.7]} 11... Nc6 {[%clk 0:01:31.4]} 12. Bb5 {[%clk 0:02:39.2]} 12... a6
{[%clk 0:01:28.3]} 13. Bxc6 {[%clk 0:02:39.5]} 13... Bxc6 {[%clk 0:01:28.6]} 14.
a5 {[%clk 0:02:33.2]} 14... Rfb8 {[%clk 0:01:20.2]} 15. axb6 {[%clk 0:02:25.4]}
15... c4 {[%clk 0:01:18.4]} 16. Ra2 {[%clk 0:01:18.9]} 16... Rxb6 {[%clk
0:01:17.9]} 17. Qa1 {[%clk 0:01:19.1]} 17... Qb8 {[%clk 0:01:08.2]} 18. Ne5
{[%clk 0:01:14.7]} 18... Be8 {[%clk 0:01:05.2]} 19. Re1 {[%clk 0:01:15]} 19...
Nd7 {[%clk 0:00:58.4]} 20. Nxd7 {[%clk 0:01:03.8]} 20... Bxd7 {[%clk 0:00:59.3]}
21. Nf1 {[%clk 0:01:04.6]} 21... Ra7 {[%clk 0:00:37.3]} 22. Ne3 {[%clk
0:01:00.2]} 22... g6 {[%clk 0:00:34.9]} 23. Kg2 {[%clk 0:00:50.2]} 23... h5
{[%clk 0:00:32.8]} 24. h4 {[%clk 0:00:45.3]} 24... Kg7 {[%clk 0:00:29.2]} 25.
Re2 {[%clk 0:00:43.7]} 25... Qb7 {[%clk 0:00:27]} 26. Nf1 {[%clk 0:00:37.6]}
26... Rb5 {[%clk 0:00:25.3]} 27. Nd2 {[%clk 0:00:28.7]} 27... a5 {[%clk
0:00:21.6]} 28. Nf3 {[%clk 0:00:29.2]} 28... Qc8 {[%clk 0:00:19.3]} 29. Ne5
{[%clk 0:00:27.7]} 29... Rab7 {[%clk 0:00:16.5]} 30. Rxa5 {[%clk 0:00:24.1]}
30... Rxa5 {[%clk 0:00:12.9]} 31. Qxa5 {[%clk 0:00:25]} 31... Be8 {[%clk
0:00:13.1]} 32. Qa3 {[%clk 0:00:18]} 32... Qb8 {[%clk 0:00:11.5]} 33. Nf3 {[%clk
0:00:13.9]} 33... Rb3 {[%clk 0:00:10.7]} 34. Qe7 {[%clk 0:00:14.1]} 34... Rb7
{[%clk 0:00:10.6]} 35. Qa3 {[%clk 0:00:04.7]} 35... Rb3 {[%clk 0:00:10.5]} 36.
Qa1 {[%clk 0:00:04.7]} 36... Qb7 {[%clk 0:00:10.3]} 37. Ng5 {[%clk 0:00:04.3]}
37... Qb6 {[%clk 0:00:09.4]} 38. Qa8 {[%clk 0:00:03.8]} 38... Qb8 {[%clk
0:00:07.9]} 39. Qa5 {[%clk 0:00:02.4]} 39... Rb5 {[%clk 0:00:07]} 40. Qa3 {[%clk
0:00:02.1]} 40... Rb3 {[%clk 0:00:07]} 41. Qe7 {[%clk 0:00:02.5]} 41... Rb7
{[%clk 0:00:06.6]} 42. Nxe6+ {[%clk 0:00:03.1]} 42... Kg8 {[%clk 0:00:04.9]} 43.
Qf8+ {[%clk 0:00:03.4]} 43... Kh7 {[%clk 0:00:04.9]} 44. Qg7# {[%clk 0:00:04.3]}
1-0

[Event "Late-Titled-Tuesday-Blitz-December-26-2023"]
[Site "Chess.com"]
[Date "2023.12.26"]
[Round "4"]
[White "chesspreceptor"]
[Black "WindWhistler11"]
[Result "0-1"]
[WhiteElo "2614"]
[BlackElo "2492"]
[TimeControl "180+1"]
[EndTime "14:39:37 PST"]
[Termination "WindWhistler11 won by checkmate"]

1. e4 {[%clk 0:03:00.9]} 1... e6 {[%clk 0:02:59.7]} 2. d4 {[%clk 0:02:59.7]}
2... d5 {[%clk 0:03:00.2]} 3. Nc3 {[%clk 0:03:00]} 3... Bb4 {[%clk 0:02:59.7]}
4. exd5 {[%clk 0:02:57.6]} 4... exd5 {[%clk 0:02:59.6]} 5. Bd3 {[%clk
0:02:58.3]} 5... Ne7 {[%clk 0:02:59.9]} 6. Ne2 {[%clk 0:02:58.1]} 6... Nbc6
{[%clk 0:03:00.5]} 7. Bf4 {[%clk 0:02:57.4]} 7... Be6 {[%clk 0:02:58.2]} 8. a3
{[%clk 0:02:54.4]} 8... Ba5 {[%clk 0:02:58.2]} 9. Qd2 {[%clk 0:02:53.7]} 9...
Bb6 {[%clk 0:02:57.8]} 10. Na4 {[%clk 0:02:49.3]} 10... Bxd4 {[%clk 0:02:34.2]}
11. Nxd4 {[%clk 0:02:48.5]} 11... Nxd4 {[%clk 0:02:34.3]} 12. Be5 {[%clk
0:02:42.1]} 12... Ndf5 {[%clk 0:02:19.5]} 13. Nc5 {[%clk 0:02:36.1]} 13... Qc8
{[%clk 0:01:56.2]} 14. O-O-O {[%clk 0:02:28.7]} 14... O-O {[%clk 0:01:41.1]} 15.
h4 {[%clk 0:02:15.2]} 15... Ng6 {[%clk 0:01:20]} 16. Bf4 {[%clk 0:02:11.2]}
16... Nxf4 {[%clk 0:01:06.7]} 17. Qxf4 {[%clk 0:02:12.1]} 17... b6 {[%clk
0:01:07.2]} 18. g4 {[%clk 0:02:08]} 18... Nd6 {[%clk 0:00:59.6]} 19. Nb3 {[%clk
0:02:02.2]} 19... Qd7 {[%clk 0:00:50.9]} 20. h5 {[%clk 0:01:56]} 20... f6 {[%clk
0:00:19.3]} 21. g5 {[%clk 0:01:49.9]} 21... f5 {[%clk 0:00:17.4]} 22. Nd4 {[%clk
0:01:44.9]} 22... c5 {[%clk 0:00:15.8]} 23. Nf3 {[%clk 0:01:41.6]} 23... Rae8
{[%clk 0:00:14.7]} 24. Ne5 {[%clk 0:01:40.8]} 24... Qc7 {[%clk 0:00:13.7]} 25.
h6 {[%clk 0:01:23]} 25... g6 {[%clk 0:00:13.1]} 26. Nxg6 {[%clk 0:01:04.3]}
26... hxg6 {[%clk 0:00:12.5]} 27. Qe5 {[%clk 0:01:04.9]} 27... Kh7 {[%clk
0:00:08.2]} 28. Rh4 {[%clk 0:00:34.1]} 28... Re7 {[%clk 0:00:08.2]} 29. Re1
{[%clk 0:00:27.1]} 29... c4 {[%clk 0:00:07.5]} 30. Be2 {[%clk 0:00:27.5]} 30...
Nb5 {[%clk 0:00:07.4]} 31. Qe3 {[%clk 0:00:21.4]} 31... d4 {[%clk 0:00:05.2]}
32. Qf3 {[%clk 0:00:21]} 32... d3 {[%clk 0:00:03.5]} 33. Bd1 {[%clk 0:00:19.6]}
33... c3 {[%clk 0:00:03.4]} 34. Qxd3 {[%clk 0:00:16.8]} 34... cxb2+ {[%clk
0:00:02.9]} 35. Kxb2 {[%clk 0:00:17]} 35... Qc5 {[%clk 0:00:02.6]} 36. c3 {[%clk
0:00:14.3]} 36... Qxa3+ {[%clk 0:00:02.3]} 37. Kc2 {[%clk 0:00:14.6]} 37... Qa2+
{[%clk 0:00:02.8]} 38. Kc1 {[%clk 0:00:15.2]} 38... Qa1+ {[%clk 0:00:02.9]} 39.
Kc2 {[%clk 0:00:15.6]} 39... Qa2+ {[%clk 0:00:03.7]} 40. Kc1 {[%clk 0:00:16]}
40... Qa1+ {[%clk 0:00:02.8]} 41. Kd2 {[%clk 0:00:14.7]} 41... Na3 {[%clk
0:00:03.7]} 42. Ba4 {[%clk 0:00:13.9]} 42... Qb2+ {[%clk 0:00:04.1]} 43. Ke3
{[%clk 0:00:14.2]} 43... Bc4+ {[%clk 0:00:03.8]} 44. Kd4 {[%clk 0:00:13.4]}
44... Rd8+ {[%clk 0:00:03]} 45. Bd7 {[%clk 0:00:11.8]} 45... Rdxd7# {[%clk
0:00:03.5]} 0-1

[Event "Late-Titled-Tuesday-Blitz-December-26-2023"]
[Site "Chess.com"]
[Date "2023.12.26"]
[Round "4"]
[White "colegiodemadrid"]
[Black "maracayo"]
[Result "0-1"]
[WhiteElo "2541"]
[BlackElo "2397"]
[TimeControl "180+1"]
[EndTime "14:39:37 PST"]
[Termination "maracayo won on time"]

1. Nf3 {[%clk 0:03:00.9]} 1... d6 {[%clk 0:02:59]} 2. c4 {[%clk 0:02:57.6]} 2...
e5 {[%clk 0:02:57.9]} 3. g3 {[%clk 0:02:52.6]} 3... Nf6 {[%clk 0:02:57.2]} 4.
Bg2 {[%clk 0:02:52.6]} 4... Be7 {[%clk 0:02:57.4]} 5. O-O {[%clk 0:02:52.7]}
5... O-O {[%clk 0:02:57.2]} 6. d4 {[%clk 0:02:53]} 6... Nbd7 {[%clk 0:02:57]} 7.
e3 {[%clk 0:02:51.6]} 7... c6 {[%clk 0:02:56.5]} 8. b3 {[%clk 0:02:49.9]} 8...
e4 {[%clk 0:02:55.6]} 9. Nfd2 {[%clk 0:02:48.6]} 9... d5 {[%clk 0:02:56.2]} 10.
Nc3 {[%clk 0:02:47.7]} 10... a6 {[%clk 0:02:55.6]} 11. Bb2 {[%clk 0:02:47]}
11... b5 {[%clk 0:02:54.9]} 12. Rc1 {[%clk 0:02:45.8]} 12... Bb7 {[%clk
0:02:54.2]} 13. cxd5 {[%clk 0:02:44.7]} 13... cxd5 {[%clk 0:02:53.7]} 14. Ne2
{[%clk 0:02:43.6]} 14... Nb6 {[%clk 0:02:52.3]} 15. Nf4 {[%clk 0:02:42.2]} 15...
b4 {[%clk 0:02:48.1]} 16. f3 {[%clk 0:02:35.1]} 16... a5 {[%clk 0:02:46.1]} 17.
fxe4 {[%clk 0:02:34.3]} 17... dxe4 {[%clk 0:02:42.2]} 18. Nc4 {[%clk 0:02:30.7]}
18... a4 {[%clk 0:02:11]} 19. Nh5 {[%clk 0:02:27.4]} 19... axb3 {[%clk
0:01:54.1]} 20. axb3 {[%clk 0:02:22.4]} 20... Ra2 {[%clk 0:01:50]} 21. Ba1
{[%clk 0:02:00.6]} 21... Nfd5 {[%clk 0:01:14.9]} 22. Qg4 {[%clk 0:01:29.5]}
22... g6 {[%clk 0:01:13.8]} 23. Nf4 {[%clk 0:00:52.9]} 23... Nf6 {[%clk
0:00:31]} 24. Qd1 {[%clk 0:00:46.8]} 24... Nbd5 {[%clk 0:00:27]} 25. Rc2 {[%clk
0:00:43.9]} 25... Rxc2 {[%clk 0:00:23.6]} 26. Qxc2 {[%clk 0:00:43.8]} 26... Ng4
{[%clk 0:00:20.2]} 27. Qe2 {[%clk 0:00:39.6]} 27... Nxf4 {[%clk 0:00:16.7]} 28.
Rxf4 {[%clk 0:00:19.5]} 28... f5 {[%clk 0:00:15.5]} 29. h3 {[%clk 0:00:16.9]}
29... Nf6 {[%clk 0:00:14.6]} 30. g4 {[%clk 0:00:16.8]} 30... Nd5 {[%clk
0:00:10.1]} 31. Rf1 {[%clk 0:00:14.4]} 31... Ba6 {[%clk 0:00:08]} 32. gxf5
{[%clk 0:00:14.1]} 32... gxf5 {[%clk 0:00:08.6]} 33. Qf2 {[%clk 0:00:12.5]}
33... Bxc4 {[%clk 0:00:07.3]} 34. bxc4 {[%clk 0:00:13.4]} 34... Nc3 {[%clk
0:00:07.1]} 35. Qg3+ {[%clk 0:00:07.3]} 35... Kh8 {[%clk 0:00:06.7]} 36. d5
{[%clk 0:00:05.8]} 36... Bf6 {[%clk 0:00:04.3]} 37. Kh2 {[%clk 0:00:05.6]} 37...
Bg7 {[%clk 0:00:03.5]} 38. Qh4 {[%clk 0:00:03.6]} 38... Qxh4 {[%clk 0:00:02.5]}
0-1

[Event "Late-Titled-Tuesday-Blitz-December-26-2023"]
[Site "Chess.com"]
[Date "2023.12.26"]
[Round "4"]
[White "SilencerBaba"]
[Black "ural58"]
[Result "0-1"]
[WhiteElo "2315"]
[BlackElo "2489"]
[TimeControl "180+1"]
[EndTime "14:39:37 PST"]
[Termination "ural58 won by resignation"]

1. e4 {[%clk 0:02:59.8]} 1... d5 {[%clk 0:03:00]} 2. exd5 {[%clk 0:02:58]} 2...
Qxd5 {[%clk 0:03:00.1]} 3. Nc3 {[%clk 0:02:58.2]} 3... Qa5 {[%clk 0:03:00]} 4.
d4 {[%clk 0:02:57.9]} 4... Nf6 {[%clk 0:03:00.1]} 5. Nf3 {[%clk 0:02:55.8]} 5...
Nc6 {[%clk 0:03:00]} 6. a3 {[%clk 0:02:50.1]} 6... Ne4 {[%clk 0:02:56]} 7. Bd3
{[%clk 0:02:46.6]} 7... Nxc3 {[%clk 0:02:51]} 8. bxc3 {[%clk 0:02:47.5]} 8...
Bg4 {[%clk 0:02:14.6]} 9. O-O {[%clk 0:02:42.4]} 9... Qxc3 {[%clk 0:02:06.9]}
10. Rb1 {[%clk 0:01:59.2]} 10... O-O-O {[%clk 0:01:54.4]} 11. h3 {[%clk
0:01:53.3]} 11... Bxf3 {[%clk 0:01:51.3]} 12. Qxf3 {[%clk 0:01:53.1]} 12... Qxd4
{[%clk 0:01:49.6]} 13. Qxf7 {[%clk 0:01:52.7]} 13... Qd5 {[%clk 0:01:43.4]} 14.
Bf5+ {[%clk 0:01:49]} 14... Kb8 {[%clk 0:01:42.4]} 15. Be6 {[%clk 0:01:48.6]}
15... Qe5 {[%clk 0:01:29]} 16. Bf4 {[%clk 0:01:47.3]} 16... Qf6 {[%clk
0:01:28.3]} 17. Rfd1 {[%clk 0:01:27.2]} 17... Qxf7 {[%clk 0:01:26]} 18. Bxf7
{[%clk 0:01:26.2]} 18... e5 {[%clk 0:01:24.9]} 19. Bxe5 {[%clk 0:01:18]} 19...
Rxd1+ {[%clk 0:01:08.8]} 20. Rxd1 {[%clk 0:01:17.3]} 20... Bxa3 {[%clk
0:00:59.2]} 21. Bxg7 {[%clk 0:01:16.7]} 21... Rd8 {[%clk 0:00:59.1]} 22. Rxd8+
{[%clk 0:01:14.9]} 22... Nxd8 {[%clk 0:00:59.1]} 23. Bg8 {[%clk 0:01:12]} 23...
h5 {[%clk 0:00:56.2]} 24. Bf6 {[%clk 0:01:09.3]} 24... Nc6 {[%clk 0:00:53]} 25.
g4 {[%clk 0:01:08.5]} 25... hxg4 {[%clk 0:00:52.2]} 26. h4 {[%clk 0:01:06.3]}
26... Bf8 {[%clk 0:00:49.9]} 27. Kg2 {[%clk 0:01:01.8]} 27... a5 {[%clk
0:00:49.6]} 28. Kg3 {[%clk 0:00:59.4]} 28... Ne7 {[%clk 0:00:46.5]} 29. Bf7
{[%clk 0:00:55.2]} 29... Nf5+ {[%clk 0:00:45.4]} 30. Kxg4 {[%clk 0:00:54.8]}
30... Nh6+ {[%clk 0:00:45.4]} 31. Kg5 {[%clk 0:00:46.7]} 31... Nxf7+ {[%clk
0:00:45.3]} 32. Kg6 {[%clk 0:00:47.3]} 32... Nd6 {[%clk 0:00:38.9]} 33. h5
{[%clk 0:00:47.2]} 33... a4 {[%clk 0:00:38.9]} 34. h6 {[%clk 0:00:47.7]} 34...
Bxh6 {[%clk 0:00:38.6]} 35. Kxh6 {[%clk 0:00:47.2]} 35... a3 {[%clk 0:00:37]}
36. f4 {[%clk 0:00:43.5]} 36... b5 {[%clk 0:00:36.3]} 37. Kg6 {[%clk 0:00:42]}
37... b4 {[%clk 0:00:30.8]} 38. Ba1 {[%clk 0:00:40.3]} 38... c5 {[%clk
0:00:30.4]} 39. f5 {[%clk 0:00:39.7]} 39... Kc7 {[%clk 0:00:30.4]} 40. Be5
{[%clk 0:00:35.5]} 40... a2 {[%clk 0:00:29.9]} 41. f6 {[%clk 0:00:33.9]} 41...
Kc6 {[%clk 0:00:30.2]} 42. f7 {[%clk 0:00:23.6]} 42... Nxf7 {[%clk 0:00:24.6]}
43. Kxf7 {[%clk 0:00:24.5]} 43... c4 {[%clk 0:00:24]} 44. Ba1 {[%clk 0:00:19.5]}
44... Kd5 {[%clk 0:00:24.2]} 45. Ke7 {[%clk 0:00:13]} 45... c3 {[%clk
0:00:23.8]} 46. Kd7 {[%clk 0:00:12.4]} 46... b3 {[%clk 0:00:24]} 47. cxb3 {[%clk
0:00:09.1]} 47... c2 {[%clk 0:00:24.2]} 0-1